fUST/lending_fUST_20240118
["ID","MTS","AMOUNT","RATE_DAILY","PERIOD"]
[311995490,1705536639482,-153.0,0.00020548,2]
[311995492,1705536639491,-153.0,0.00020548,2]
[311995494,1705536639500,-153.0,0.00020548,2]
[311995495,1705536639509,-153.0,0.00020548,2]
[311995497,1705536639518,-1815.68321298,0.00021,2]
[311995499,1705536639529,-327.18048,0.00021,2]
[311995501,1705536639538,-616.68166669,0.00021073,2]
[311995502,1705536639546,-1000.0,0.000211,2]
[311995504,1705536639556,-1986.07008117,0.00021119,2]
[311995506,1705536639565,-553.9869948,0.00021332,2]
[311995508,1705536639574,-50000.0,0.00021334,2]
[311995509,1705536639583,-50000.0,0.00021359,2]
[311995510,1705536639592,-280.0,0.00021369,7]
[311995511,1705536639601,-306.0,0.00021507,2]
[311995512,1705536639611,-153.0,0.00021507,2]
[311995513,1705536639620,-153.0,0.00021507,2]
[311995514,1705536639629,-153.0,0.00021507,2]
[311995515,1705536639639,-153.0,0.00021507,2]
[311995516,1705536639648,-114558.84418596,0.00021717,2]
[311995517,1705536639657,-32768.13522764,0.00021817,2]
[311995518,1705536639667,-154.9690062,0.00021915,2]
[311995519,1705536639676,-154.9690062,0.00021915,2]
[311995520,1705536639685,-1000.0,0.00021916,3]
[311995521,1705536639695,-1000.0,0.00021916,3]
[311995522,1705536639704,-1000.0,0.00021916,3]
[311995523,1705536639713,-1000.0,0.00021916,3]
[311995524,1705536639723,-1000.0,0.00021916,3]
[311995525,1705536639732,-1000.0,0.00021916,3]
[311995526,1705536639741,-1000.0,0.00021916,3]
[311995527,1705536639750,-1000.0,0.00021916,3]
[311995528,1705536639759,-1022.03051165,0.00021916,3]
[311995529,1705536639769,-190.404436,0.00021917,2]
[311995530,1705536639778,-190.404436,0.00021917,2]
[311995531,1705536639787,-425.498062,0.00021917,2]
[311995532,1705536639796,-425.498062,0.00021917,2]
[311995533,1705536639805,-500.0,0.00021917,2]
[311995534,1705536639814,-500.0,0.00021917,2]
[311995535,1705536639824,-500.0,0.00021917,2]
[311995536,1705536639833,-500.0,0.00021917,2]
[311995537,1705536639842,-500.0,0.00021917,2]
[311995538,1705536639851,-500.0,0.00021917,2]
[311995539,1705536639860,-500.0,0.00021917,2]
[311995540,1705536639869,-502.86947802,0.00021917,2]
[311995541,1705536639879,-500.0,0.00021917,2]
[311995542,1705536639888,-500.0,0.00021917,2]
[311995543,1705536639897,-163.18093818,0.00021917,2]
[311995544,1705536639906,-500.0,0.00021917,2]
[311995545,1705536639915,-220.0,0.00021917,2]
[311995546,1705536639924,-500.0,0.00021917,2]
[311995547,1705536639933,-547.3876798,0.00021917,2]
[311995548,1705536639942,-500.0,0.00021917,2]
[311995549,1705536639951,-500.0,0.00021917,2]
[311995550,1705536639960,-500.0,0.00021917,2]
[311995551,1705536639969,-500.0,0.00021917,2]
[311995552,1705536639978,-500.0,0.00021917,2]
[311995553,1705536639987,-503.2198619,0.00021917,2]
[311995554,1705536639996,-500.0,0.00021917,2]
[311995555,1705536640005,-500.0,0.00021917,2]
[311995556,1705536640015,-500.0,0.00021917,2]
[311995557,1705536640023,-500.0,0.00021917,2]
[311995558,1705536640032,-500.0,0.00021917,2]
[311995559,1705536640041,-500.0,0.00021917,2]
[311995560,1705536640051,-500.0,0.00021917,2]
[311995561,1705536640060,-500.0,0.00021917,2]
[311995562,1705536640131,-461.17843288,0.00021917,2]
[311995563,1705536640140,-500.39204374,0.00021917,2]
[311995564,1705536640150,-500.0,0.00021917,2]
[311995565,1705536640159,-671.66,0.00021917,2]
[311995566,1705536640168,-500.0,0.00021917,2]
[311995567,1705536640177,-337.83766465,0.00021917,2]
[311995568,1705536640187,-554.83198085,0.00021917,2]
[311995569,1705536640200,-500.0,0.00021917,2]
[311995570,1705536640209,-500.0,0.00021917,2]
[311995571,1705536640218,-500.0,0.00021917,2]
[311995572,1705536640227,-500.0,0.00021917,2]
[311995573,1705536640236,-500.0,0.00021917,2]
[311995574,1705536640246,-500.0,0.00021917,2]
[311995575,1705536640255,-189.61033351,0.00021917,2]
[311995576,1705536640265,-500.0,0.00021917,2]
[311995577,1705536640276,-500.0,0.00021917,2]
[311995578,1705536640285,-588.85286775,0.00021917,2]
[311995579,1705536640294,-500.0,0.00021917,2]
[311995580,1705536640304,-500.0,0.00021917,2]
[311995581,1705536640313,-221.17429449,0.00021917,2]
[311995582,1705536640322,-500.0,0.00021917,2]
[311995583,1705536640332,-533.15981877,0.00021917,2]
[311995584,1705536640341,-500.0,0.00021917,2]
[311995585,1705536640351,-501.13132414,0.00021917,2]
[311995586,1705536640360,-500.0,0.00021917,2]
[311995587,1705536640371,-603.06100403,0.00021917,2]
[311995588,1705536640380,-1000.0,0.00021917,2]
[311995589,1705536640390,-202.7786188,0.00021917,2]
[311995590,1705536640399,-224.55962022,0.00021917,2]
[311995591,1705536640408,-500.0,0.00021917,2]
[311995592,1705536640418,-500.0,0.00021917,2]
[311995593,1705536640427,-500.0,0.00021917,2]
[311995594,1705536640436,-504.38492076,0.00021917,2]
[311995595,1705536640446,-500.0,0.00021917,2]
[311995596,1705536640456,-500.0,0.00021917,2]
[311995597,1705536640466,-500.0,0.00021917,2]
[311995598,1705536640476,-500.0,0.00021917,2]
[311995599,1705536640486,-500.0,0.00021917,2]
[311995600,1705536640495,-500.0,0.00021917,2]
[311995601,1705536640505,-620.7001689,0.00021917,2]
[311995602,1705536640514,-500.0,0.00021917,2]
[311995603,1705536640525,-213.44584574,0.00021917,2]
[311995604,1705536640534,-202.77003098,0.00021917,2]
[311995605,1705536640544,-500.0,0.00021917,2]
[311995606,1705536640553,-500.0,0.00021917,2]
[311995607,1705536640562,-500.0,0.00021917,2]
[311995608,1705536640571,-513.30900014,0.00021917,2]
[311995609,1705536640581,-500.0,0.00021917,2]
[311995610,1705536640590,-500.0,0.00021917,2]
[311995611,1705536640599,-500.0,0.00021917,2]
[311995612,1705536640608,-641.52337229,0.00021917,2]
[311995613,1705536640617,-500.0,0.00021917,2]
[311995614,1705536640627,-500.0,0.00021917,2]
[311995615,1705536640636,-502.82129946,0.00021917,2]
[311995616,1705536640645,-500.0,0.00021917,2]
[311995617,1705536640655,-500.0,0.00021917,2]
[311995618,1705536640664,-500.0,0.00021917,2]
[311995619,1705536640673,-500.0,0.00021917,2]
[311995620,1705536640682,-500.0,0.00021917,2]
[311995621,1705536640691,-500.0,0.00021917,2]
[311995622,1705536640700,-500.0,0.00021917,2]
[311995623,1705536640710,-500.0,0.00021917,2]
[311995624,1705536640719,-500.0,0.00021917,2]
[311995625,1705536640728,-500.0,0.00021917,2]
[311995626,1705536640737,-500.0,0.00021917,2]
[311995627,1705536640747,-500.0,0.00021917,2]
[311995628,1705536640756,-500.0,0.00021917,2]
[311995629,1705536640765,-500.0,0.00021917,2]
[311995630,1705536640775,-500.0,0.00021917,2]
[311995631,1705536640784,-500.0,0.00021917,2]
[311995632,1705536640793,-500.0,0.00021917,2]
[311995633,1705536640803,-372.0099194,0.00021917,2]
[311995634,1705536640812,-500.0,0.00021917,2]
[311995635,1705536640821,-500.0,0.00021917,2]
[311995636,1705536640831,-166.666666,0.00021918,2]
[311995637,1705536640840,-308.7547554,0.00021918,2]
[311995638,1705536640850,-153.0,0.00021918,2]
[311995639,1705536640859,-153.0,0.00021918,2]
[311995640,1705536640869,-153.0,0.00021918,2]
[311995641,1705536640879,-296.0424188,0.00021918,2]
[311995642,1705536640889,-306.4086177,0.00021918,2]
[311995643,1705536640898,-153.0,0.00021918,2]
[311995644,1705536640908,-153.0,0.00021918,2]
[311995645,1705536640917,-153.0,0.00021918,2]
[311995646,1705536640927,-307.1994419,0.00021918,2]
[311995647,1705536640937,-358.9413143,0.00021918,2]
[311995648,1705536640947,-306.0,0.00021918,2]
[311995649,1705536640957,-616.68166669,0.00021954,2]
[311995650,1705536640967,-425.53656097,0.00022,2]
[311995651,1705536640976,-3955.54830897,0.00022,2]
[311995652,1705536640986,-293.1976279,0.00022,4]
[311995653,1705536640995,-151.0,0.00022054,2]
[311995654,1705536641005,-500.0,0.00022054,2]
[311995655,1705536641015,-500.0,0.00022054,2]
[311995656,1705536641024,-500.0,0.00022054,2]
[311995657,1705536641034,-500.0,0.00022054,2]
[311995658,1705536641044,-500.0,0.00022054,2]
[311995659,1705536641053,-511.57846325,0.00022054,2]
[311995660,1705536641062,-373.07904579,0.00022054,2]
[311995661,1705536641072,-500.0,0.00022054,2]
[311995662,1705536641081,-500.0,0.00022054,2]
[311995663,1705536641091,-500.0,0.00022054,2]
[311995664,1705536641100,-500.0,0.00022054,2]
[311995665,1705536641110,-412.06527793,0.00022054,2]
[311995666,1705536641119,-500.0,0.00022054,2]
[311995667,1705536641129,-500.0,0.00022054,2]
[311995669,1705536641138,-500.0,0.00022054,2]
[311995671,1705536641148,-500.0,0.00022054,2]
[311995672,1705536641157,-510.23732956,0.00022054,2]
[311995674,1705536641167,-265.59406421,0.00022054,2]
[311995676,1705536641177,-500.0,0.00022054,2]
[311995677,1705536641186,-500.0,0.00022054,2]
[311995679,1705536641196,-500.0,0.00022054,2]
[311995681,1705536641208,-671.66,0.00022054,2]
[311995682,1705536641218,-317.56236444,0.00022054,2]
[311995683,1705536641228,-500.0,0.00022054,2]
[311995684,1705536641238,-559.00009763,0.00022054,2]
[311995685,1705536641248,-534.43168282,0.00022054,2]
[311995686,1705536641258,-262.04807928,0.00022054,2]
[311995687,1705536641267,-500.0,0.00022054,2]
[311995689,1705536641277,-500.0,0.00022054,2]
[311995690,1705536641287,-500.0,0.00022054,2]
[311995692,1705536641297,-1000.0,0.00022054,2]
[311995694,1705536641306,-500.0,0.00022054,2]
[311995696,1705536641315,-500.0,0.00022054,2]
[311995698,1705536641325,-500.0,0.00022054,2]
[311995700,1705536641335,-500.0,0.00022054,2]
[311995702,1705536641345,-500.0,0.00022054,2]
[311995708,1705536641416,-503.26576196,0.00022054,2]
[311995710,1705536641427,-500.0,0.00022054,2]
[311995712,1705536641436,-518.65973861,0.00022054,2]
[311995714,1705536641447,-151.0,0.00022191,2]
[311995715,1705536641457,-190.404436,0.00022191,2]
[311995717,1705536641467,-190.404436,0.00022191,2]
[311995719,1705536641477,-497.72312481,0.00022191,2]
[311995721,1705536641486,-500.0,0.00022191,2]
[311995723,1705536641495,-398.41303084,0.00022191,2]
[311995724,1705536641504,-500.0,0.00022191,2]
[311995726,1705536641513,-500.0,0.00022191,2]
[311995728,1705536641524,-500.0,0.00022191,2]
[311995730,1705536641534,-500.0,0.00022191,2]
[311995731,1705536641544,-671.66,0.00022191,2]
[311995733,1705536641553,-500.0,0.00022191,2]
[311995735,1705536641562,-168.26455569,0.00022191,2]
[311995737,1705536641572,-500.0,0.00022191,2]
[311995739,1705536641581,-500.0,0.00022191,2]
[311995740,1705536641590,-500.0,0.00022191,2]
[311995742,1705536641600,-245.003184,0.000223,2]
[311995743,1705536641609,-500.0,0.00022328,2]
[311995744,1705536641618,-496.84283628,0.00022328,2]
[311995745,1705536641627,-671.66,0.00022328,2]
[311995746,1705536641637,-500.0,0.00022328,2]
[311995747,1705536641647,-500.0,0.00022328,2]
[311995748,1705536641656,-500.0,0.00022328,2]
[311995749,1705536641665,-166.666666,0.00022431,2]
[311995750,1705536641675,-425.498062,0.00022465,2]
[311995751,1705536641685,-425.498062,0.00022465,2]
[311995752,1705536641694,-671.66,0.00022465,2]
[311995753,1705536641704,-500.0,0.00022465,2]
[311995754,1705536641713,-500.0,0.00022465,2]
[311995755,1705536641723,-500.0,0.00022465,2]
[311995756,1705536641732,-620.56089155,0.00022522,2]
[311995757,1705536641742,-671.66,0.00022602,2]
[311995758,1705536641752,-500.0,0.00022602,2]
[311995759,1705536641761,-500.0,0.00022602,2]
[311995760,1705536641770,-500.0,0.00022602,2]
[311995761,1705536641779,-671.66,0.00022739,2]
[311995762,1705536641789,-500.0,0.00022739,2]
[311995763,1705536641799,-500.0,0.00022739,2]
[311995764,1705536641808,-520.3,0.00022739,2]
[311995765,1705536641819,-397.91523,0.0002274,2]
[311995766,1705536641829,-198.9576152,0.0002274,2]
[311995767,1705536641839,-198.9576149,0.0002274,2]
[311995768,1705536641848,-198.9576151,0.0002274,2]
[311995769,1705536641857,-222.714766,0.0002274,2]
[311995770,1705536641867,-153.0,0.0002274,2]
[311995771,1705536641876,-401.0129254,0.0002274,2]
[311995772,1705536641886,-433.5559996,0.0002274,2]
[311995773,1705536641895,-153.0,0.0002274,2]
[311995774,1705536641904,-153.0,0.0002274,2]
[311995775,1705536641914,-153.0,0.0002274,2]
[311995776,1705536641923,-153.0,0.0002274,2]
[311995777,1705536641933,-153.0,0.0002274,2]
[311995778,1705536641944,-153.0,0.0002274,2]
[311995779,1705536641954,-153.0,0.0002274,2]
[311995780,1705536641963,-323.0083763,0.0002274,2]
[311995781,1705536641973,-671.66,0.00022876,2]
[311995782,1705536641988,-500.0,0.00022876,2]
[311995783,1705536642005,-500.0,0.00022876,2]
[311995784,1705536642019,-166.666666,0.00022944,2]
[311995785,1705536642033,-671.66,0.00023013,2]
[311995786,1705536642048,-500.0,0.00023013,2]
[311995787,1705536642065,-500.0,0.00023013,2]
[311995788,1705536642080,-3611.19133811,0.00023088,2]
[311995789,1705536642093,-3611.19133811,0.00023088,2]
[311995790,1705536642108,-3611.19133811,0.00023088,2]
[311995791,1705536642122,-3611.19133811,0.00023088,2]
[311995792,1705536642137,-3611.19133811,0.00023088,2]
[311995793,1705536642151,-3611.19133811,0.00023088,2]
[311995794,1705536642163,-3611.19133811,0.00023088,2]
[311995795,1705536642179,-3611.19133811,0.00023088,2]
[311995796,1705536642195,-3611.19133811,0.00023088,2]
[311995797,1705536642210,-3611.19133811,0.00023088,2]
[311995798,1705536642228,-9111.67082876,0.00023114,2]
[311995799,1705536642244,-671.66,0.0002315,2]
[311995800,1705536642260,-500.0,0.0002315,2]
[311995801,1705536642275,-500.0,0.0002315,2]
[311995802,1705536642289,-50000.0,0.00023221,2]
[311995803,1705536642301,-190.404436,0.00023221,2]
[311995804,1705536642316,-190.404436,0.00023221,2]
[311995805,1705536642329,-425.498062,0.00023221,2]
[311995806,1705536642343,-425.498062,0.00023221,2]
[311995807,1705536642355,-151.0,0.00023221,2]
[311995808,1705536642368,-217.861042,0.00023221,2]
[311995809,1705536642380,-50000.0,0.00023223,2]
[311995810,1705536642392,-50000.0,0.00023223,2]
[311995811,1705536642405,-13031.40442682,0.00023225,2]
[311995812,1705536642418,-671.66,0.00023287,2]
[311995813,1705536642430,-500.0,0.00023287,2]
[311995814,1705536642442,-500.0,0.00023287,2]
[311995815,1705536642455,-1931.02268779,0.00023288,2]
[311995816,1705536642467,-1931.02268779,0.00023288,2]
[311995817,1705536642479,-1931.02268779,0.00023288,2]
[311995818,1705536642492,-2734.26176407,0.00023288,2]
[311995819,1705536642504,-2734.26176407,0.00023288,2]
[311995820,1705536642517,-2734.26176407,0.00023288,2]
[311995821,1705536642529,-500.0,0.00023288,4]
[311995822,1705536642541,-500.0,0.00023288,4]
[311995823,1705536642553,-500.0,0.00023288,4]
[311995824,1705536642566,-500.0,0.00023288,4]
[311995825,1705536642578,-500.0,0.00023288,4]
[311995826,1705536642590,-500.0,0.00023288,4]
[311995827,1705536642602,-500.0,0.00023288,4]
[311995828,1705536642615,-612.97737071,0.00023288,4]
[311995829,1705536642627,-500.0,0.00023288,4]
[311995830,1705536642640,-439.41735,0.00023288,4]
[311995831,1705536642652,-500.0,0.00023288,4]
[311995832,1705536642665,-500.0,0.00023288,4]
[311995833,1705536642676,-446.70081226,0.00023288,4]
[311995834,1705536642688,-483.2878356,0.00023288,4]
[311995835,1705536642700,-456.51583666,0.00023288,4]
[311995836,1705536642712,-484.85433749,0.00023288,4]
[311995837,1705536642725,-500.0,0.00023288,4]
[311995838,1705536642736,-500.0,0.00023288,4]
[311995839,1705536642748,-230.42533866,0.00023288,4]
[311995844,1705536642853,-500.0,0.00023288,4]
[311995846,1705536642868,-456.51583666,0.00023288,4]
[311995847,1705536642877,-500.0,0.00023288,4]
[311995848,1705536642885,-500.0,0.00023288,4]
[311995849,1705536642894,-417.15198119,0.00023288,4]
[311995850,1705536642902,-500.0,0.00023288,4]
[311995851,1705536642910,-500.0,0.00023288,4]
[311995852,1705536642918,-500.0,0.00023288,4]
[311995853,1705536642927,-500.0,0.00023288,4]
[311995854,1705536642935,-500.0,0.00023288,4]
[311995855,1705536642943,-500.0,0.00023288,4]
[311995856,1705536642952,-500.0,0.00023288,4]
[311995857,1705536642960,-313.26787496,0.00023288,4]
[311995858,1705536642969,-506.96034033,0.00023288,4]
[311995859,1705536642977,-500.0,0.00023288,4]
[311995860,1705536642986,-491.94889528,0.00023288,4]
[311995862,1705536642994,-416.92075811,0.00023288,4]
[311995864,1705536643003,-500.0,0.00023288,4]
[311995866,1705536643012,-500.0,0.00023288,4]
[311995867,1705536643020,-500.0,0.00023288,4]
[311995869,1705536643029,-500.0,0.00023288,4]
[311995870,1705536643038,-500.0,0.00023288,4]
[311995872,1705536643047,-466.57567122,0.00023288,4]
[311995874,1705536643056,-500.0,0.00023288,4]
[311995876,1705536643064,-500.0,0.00023288,4]
[311995877,1705536643074,-440.92104741,0.00023288,4]
[311995879,1705536643082,-500.0,0.00023288,4]
[311995881,1705536643091,-500.0,0.00023288,4]
[311995883,1705536643100,-500.0,0.00023288,4]
[311995884,1705536643108,-500.0,0.00023288,4]
[311995886,1705536643116,-425.67787235,0.00023288,2]
[311995888,1705536643125,-425.38790622,0.00023288,2]
[311995890,1705536643134,-500.0,0.00023288,2]
[311995891,1705536643142,-224.2897411,0.00023288,2]
[311995893,1705536643150,-416.63986649,0.00023288,2]
[311995895,1705536643158,-500.0,0.00023288,2]
[311995897,1705536643167,-290.0,0.00023288,2]
[311995898,1705536643176,-500.0,0.00023288,2]
[311995900,1705536643185,-500.0,0.00023288,2]
[311995902,1705536643195,-500.0,0.00023288,2]
[311995904,1705536643204,-500.0,0.00023288,2]
[311995905,1705536643214,-500.0,0.00023288,2]
[311995907,1705536643223,-500.0,0.00023288,2]
[311995909,1705536643232,-500.0,0.00023288,2]
[311995911,1705536643241,-500.0,0.00023288,2]
[311995912,1705536643250,-500.0,0.00023288,2]
[311995914,1705536643259,-500.0,0.00023288,2]
[311995916,1705536643268,-500.0,0.00023288,2]
[311995918,1705536643277,-500.0,0.00023288,2]
[311995920,1705536643285,-562.22823378,0.00023288,2]
[311995921,1705536643295,-500.0,0.00023288,4]
[311995923,1705536643304,-500.0,0.00023288,4]
[311995925,1705536643313,-500.0,0.00023288,4]
[311995927,1705536643322,-500.0,0.00023288,4]
[311995929,1705536643331,-500.0,0.00023288,4]
[311995930,1705536643340,-500.0,0.00023288,4]
[311995932,1705536643349,-500.0,0.00023288,4]
[311995934,1705536643358,-500.0,0.00023288,4]
[311995935,1705536643366,-421.6711753,0.00023288,2]
[311995937,1705536643375,-500.0,0.00023288,2]
[311995939,1705536643384,-287.30332973,0.00023288,2]
[311995940,1705536643392,-458.05218774,0.00023288,2]
[311995942,1705536643401,-500.0,0.00023288,2]
[311995945,1705536643410,-306.12808647,0.00023288,2]
[311995947,1705536643418,-500.0,0.00023288,2]
[311995949,1705536643427,-500.0,0.00023288,2]
[311995950,1705536643435,-500.0,0.00023288,2]
[311995952,1705536643444,-574.45013538,0.00023288,4]
[311995954,1705536643454,-500.0,0.00023288,2]
[311995956,1705536643463,-500.0,0.00023288,2]
[311995958,1705536643472,-292.70144692,0.00023288,2]
[311995959,1705536643481,-500.0,0.00023288,2]
[311995961,1705536643489,-500.0,0.00023288,2]
[311995963,1705536643497,-500.0,0.00023288,2]
[311995965,1705536643506,-500.0,0.00023288,2]
[311995967,1705536643514,-500.0,0.00023288,2]
[311995968,1705536643523,-226.2337443,0.00023288,2]
[311995970,1705536643532,-500.0,0.00023288,4]
[311995972,1705536643541,-319.51248105,0.00023288,4]
[311995974,1705536643550,-500.0,0.00023288,4]
[311995976,1705536643559,-500.0,0.00023288,4]
[311995978,1705536643567,-500.0,0.00023288,4]
[311995980,1705536643576,-500.0,0.00023288,4]
[311995981,1705536643585,-500.0,0.00023288,4]
[311995983,1705536643593,-419.36168839,0.00023288,2]
[311995985,1705536643602,-500.0,0.00023288,4]
[311995987,1705536643610,-527.43611911,0.00023288,4]
[311995989,1705536643619,-241.64391781,0.00023288,4]
[311995991,1705536643628,-500.0,0.00023288,4]
[311995992,1705536643636,-410.12285999,0.00023288,4]
[311995994,1705536643650,-257.76915741,0.00023288,2]
[311995996,1705536643659,-197.5,0.00023288,2]
[311995998,1705536643668,-500.0,0.00023288,2]
[311996000,1705536643677,-405.69307281,0.00023288,2]
[311996002,1705536643686,-473.35040613,0.00023288,4]
[311996004,1705536643695,-500.0,0.00023288,2]
[311996006,1705536643706,-250.0,0.00023288,2]
[311996007,1705536643717,-500.0,0.00023288,2]
[311996009,1705536643726,-395.89413246,0.00023288,2]
[311996011,1705536643735,-1646.07149206,0.00023288,4]
[311996013,1705536643745,-1646.07149206,0.00023288,4]
[311996015,1705536643754,-1646.07149206,0.00023288,4]
[311996017,1705536643763,-1646.07149206,0.00023288,4]
[311996019,1705536643772,-1646.07149206,0.00023288,4]
[311996020,1705536643781,-500.0,0.00023288,2]
[311996022,1705536643791,-216.17728897,0.00023288,2]
[311996024,1705536643801,-500.0,0.00023288,4]
[311996026,1705536643810,-500.0,0.00023288,4]
[311996028,1705536643821,-500.0,0.00023288,4]
[311996030,1705536643832,-369.93894399,0.00023288,4]
[311996032,1705536643843,-500.0,0.00023288,2]
[311996034,1705536643853,-169.03785122,0.00023288,2]
[311996035,1705536643863,-500.0,0.00023288,2]
[311996037,1705536643873,-500.0,0.00023288,2]
[311996039,1705536643883,-419.77781009,0.00023288,2]
[311996041,1705536643893,-500.0,0.00023288,2]
[311996043,1705536643902,-500.0,0.00023288,2]
[311996045,1705536643912,-500.0,0.00023288,2]
[311996047,1705536643922,-500.0,0.00023288,2]
[311996048,1705536643931,-500.0,0.00023288,2]
[311996050,1705536643941,-500.0,0.00023288,2]
[311996052,1705536643950,-503.48017017,0.00023288,4]
[311996054,1705536643963,-251.95488423,0.00023288,4]
[311996056,1705536643973,-765.59329395,0.00023288,2]
[311996058,1705536643982,-765.59329395,0.00023288,2]
[311996060,1705536643991,-765.59329395,0.00023288,2]
[311996062,1705536644000,-500.0,0.00023288,4]
[311996063,1705536644009,-500.0,0.00023288,4]
[311996064,1705536644018,-449.27267148,0.00023288,4]
[311996066,1705536644028,-500.0,0.00023288,2]
[311996068,1705536644037,-379.65688551,0.00023288,2]
[311996070,1705536644046,-500.0,0.00023288,2]
[311996071,1705536644055,-500.0,0.00023288,2]
[311996073,1705536644065,-400.43955962,0.00023288,2]
[311996075,1705536644074,-3354.06944569,0.00023288,2]
[311996077,1705536644083,-3354.06944569,0.00023288,2]
[311996078,1705536644092,-502.36420667,0.00023288,2]
[311996080,1705536644102,-3354.06944569,0.00023288,2]
[311996082,1705536644111,-558.5671262,0.00023288,2]
[311996084,1705536644120,-490.97444764,0.00023288,4]
[311996086,1705536644129,-499.99999999,0.00023288,4]
[311996087,1705536644138,-457.01494437,0.00023288,2]
[311996089,1705536644147,-410.17907789,0.00023288,2]
[311996091,1705536644157,-500.0,0.00023288,2]
[311996093,1705536644166,-500.0,0.00023288,4]
[311996095,1705536644175,-460.97413529,0.00023288,4]
[311996096,1705536644185,-500.0,0.00023288,4]
[311996098,1705536644194,-414.05038622,0.00023288,4]
[311996100,1705536644204,-241.48026026,0.00023288,4]
[311996102,1705536644216,-292.04946861,0.00023288,4]
[311996104,1705536644225,-165.62015448,0.00023288,4]
[311996105,1705536644234,-500.0,0.00023288,4]
[311996107,1705536644243,-434.75290552,0.00023288,4]
[311996109,1705536644252,-443.15779185,0.00023288,4]
[311996111,1705536644262,-332.41104931,0.00023288,2]
[311996113,1705536644271,-273.37408557,0.00023288,2]
[311996115,1705536644280,-334.82848718,0.00023288,2]
[311996117,1705536644290,-190.404436,0.00023288,2]
[311996118,1705536644300,-190.404436,0.00023288,2]
[311996120,1705536644309,-425.498062,0.00023288,2]
[311996122,1705536644319,-425.498062,0.00023288,2]
[311996124,1705536644328,-190.404436,0.00023322,2]
[311996126,1705536644337,-190.404436,0.00023322,2]
[311996127,1705536644347,-162.0,0.00023338,2]
[311996129,1705536644357,-202.279,0.00023338,2]
[311996131,1705536644366,-242.554,0.00023338,2]
[311996133,1705536644375,-425.498062,0.00023373,2]
[311996135,1705536644385,-425.498062,0.00023373,2]
[311996137,1705536644395,-5000.0,0.00023373,2]
[311996145,1705536644471,-5000.0,0.00023373,2]
[311996147,1705536644480,-5000.0,0.00023373,2]
[311996149,1705536644489,-1330.74214508,0.00023373,2]
[311996151,1705536644498,-5000.0,0.00023373,2]
[311996152,1705536644507,-5000.0,0.00023373,2]
[311996154,1705536644516,-50000.0,0.00023389,2]
[311996156,1705536644525,-50000.0,0.00023423,2]
[311996158,1705536644534,-190.404436,0.00023423,2]
[311996160,1705536644543,-190.404436,0.00023423,2]
[311996162,1705536644551,-425.498062,0.00023423,2]
[311996163,1705536644561,-425.498062,0.00023423,2]
[311996165,1705536644570,-671.66,0.00023424,2]
[311996167,1705536644578,-500.0,0.00023424,2]
[311996169,1705536644588,-500.0,0.00023424,2]
[311996171,1705536644597,-5000.0,0.00023438,2]
[311996173,1705536644606,-5000.0,0.00023438,2]
[311996175,1705536644614,-151.0,0.00023453,2]
[311996176,1705536644623,-166.666666,0.00023456,2]
[311996178,1705536644632,-3414.42345215,0.00023497,2]
[311996180,1705536644641,-391.0,0.00023506,7]
[311996182,1705536644650,-190.404436,0.00023522,2]
[311996184,1705536644659,-190.404436,0.00023522,2]